Workbook

Sheet 2015, 2016, 2017
P1: Приложение 3 к пояснительной записке 2015 года
A2: Распределение бюджетных ассигнований областного бюджета Ленинградской области на 2015 год и на плановый период 2016 и 2017 годов по главным распорядителям бюджетных средств областного бюджета Ленинградской области за счет собственных средств и безвозмездных поступлений
R4: тыс. руб.
A5: № п.п. | B5: Код ГРБСа | C5: Главный распорядитель бюджетных средств | D5: Утвержденный бюджет на 2014 год (в редакции № 29-оз от 06.06.2014) * | E5: Бюджет на 2014 год (с учетом дотации 1000000 тыс. руб. из ФБ) | F5: Утвержденный бюджет на 2015 год (в редакции № 29-оз от 06.06.2014) * | G5: Расчет на 2015 год | H5: % роста 2015 к 2014 с учетом дотации | I5: рост (уменьшение) 2015 к 2014 | J5: 2015 год | M5: 2016 год | P5: 2017 год
J6: областные | K6: безвозмездные | L6: ВСЕГО | M6: областные | N6: безвозмездные | O6: ВСЕГО | P6: областные | Q6: безвозмездные | R6: ВСЕГО | S6: АЦК | V6: разница
A7: 1 | B7: 1 | C7: 2 | D7: 3 | E7: 4 | F7: 5 | G7: 6 | H7: 7 | I7: 8 | J7: 3 | K7: 4 | L7: 5=3+4 | M7: 6 | N7: 7 | O7: 8=6+7 | P7: 9 | Q7: 10 | R7: 11=9+10
C8: Постановление Правительства "Об основных параметрах проекта областного бюджета Ленинградской области на 2015 год и на плановый период 2016 и 2017 годов" (без учета условно утвержденных расходов) | G8: 76085799.1 | J8: 76085799.1 | M8: 77437297.9 | P8: 78469795.2
C9: ИТОГО | D9: =SUM(D10:D48) -> 74065643.5 | E9: =SUM(E10:E48) -> 75065643.5 | F9: =SUM(F10:F48) -> 75159761.3 | G9: =SUM(G10:G48) -> 77085799.1 | H9: =G9/E9*100 -> 102.6911853 | I9: =G9-E9 -> 2020155.6 | J9: =SUM(J10:J48) -> 76710424.7 | K9: =SUM(K10:K48) -> 6340639.8 | L9: 83051064.5 | M9: 77736394.3 | N9: 5243008.8 | O9: 82979403.1 | P9: 78815936.1 | Q9: 4842203.4 | R9: 83658139.5 | S9: 83051064.5 | T9: 82979403.1 | U9: 83658139.5
A10: 1 | B10: 029 | C10: Комитет по дорожному хозяйству Ленинградской области | D10: 7508597 | E10: 7508597 | F10: 6951875.1 | G10: =6675793.2+1516.9 -> 6677310.1 | H10: 88.92886514 | I10: -831286.9 | J10: 6688162.1 | K10: 1000000 | L10: =J10+K10 -> 7688162.1 | M10: =7499202-57037.6 -> 7442164.4 | O10: =M10+N10 -> 7442164.4 | P10: =7829393.3-58334.7 -> 7771058.6 | R10: =P10+Q10 -> 7771058.6 | S10: 7688162.1 | T10: 7442164.4 | U10: 7771058.6 | V10: =L10-S10 -> 0 | W10: =O10-T10 -> 0 | X10: =R10-U10 -> 0
A11: 2 | B11: 047 | C11: Государственное казенное учреждение Ленинградской области "Государственный экспертный институт регионального законодательства" | D11: 10179.2 | E11: 10179.2 | F11: 10414.6 | G11: =F11 -> 10414.6 | H11: 102.3125589 | I11: 235.4 | J11: 10571.1 | L11: =J11+K11 -> 10571.1 | M11: 10622.9 | O11: =M11+N11 -> 10622.9 | P11: 10676 | R11: =P11+Q11 -> 10676 | S11: 10571.1 | T11: 10622.9 | U11: 10676 | V11: =L11-S11 -> 0 | W11: =O11-T11 -> 0 | X11: =R11-U11 -> 0
A12: 3 | B12: 065 | C12: Избирательная комиссия Ленинградской области | D12: 59778 | E12: 59778 | F12: 61160.4 | G12: 61392 | H12: 102.69999 | I12: 1614 | J12: 61392 | L12: 61392 | M12: 62619.8 | O12: 62619.8 | P12: 62932.9 | R12: 62932.9 | S12: 61392 | T12: 62619.8 | U12: 62932.9 | V12: 0 | W12: 0 | X12: 0
A13: 4 | B13: 068 | C13: Комитет общего и профессионального образования Ленинградской области | D13: 15825982.5 | E13: =15825982.5+630000 -> 16455982.5 | F13: 16597615.4 | G13: =17851334.2-300000 -> 17551334.2 | H13: 106.6562522 | I13: 1095351.7 | J13: =16968494.2-30 -> 16968464.2 | K13: =15403.5+18120.8 -> 33524.3 | L13: 17001988.5 | M13: =17723407.1+32000 -> 17755407.1 | N13: =16173.7+18966.6 -> 35140.3 | O13: 17790547.4 | P13: =18510320+32000 -> 18542320 | Q13: =16173.7+12388.3 -> 28562 | R13: 18570882 | S13: 17001988.5 | T13: 17790547.4 | U13: 18570882 | V13: 0 | W13: 0 | X13: 0
A14: 5 | B14: 075 | C14: Комитет по агропромышленному и рыбохозяйственному комплексу Ленинградской области | D14: 2180000 | E14: 2180000 | F14: 2304858.4 | G14: 2245400 | H14: 103 | I14: 65400 | J14: 2245400 | L14: 2245400 | M14: 2290308 | O14: 2290308 | P14: 2301759.5 | R14: 2301759.5 | S14: 2245400 | T14: 2290308 | U14: 2301759.5 | V14: 0 | W14: 0 | X14: 0
A15: 6 | B15: 078 | C15: Контрольно-счетная палата Ленинградской области | D15: 61905.8 | E15: 61905.8 | F15: 63337.2 | G15: 63577.3 | H15: 102.7000701 | I15: 1671.5 | J15: 63577.3 | L15: 63577.3 | M15: 64848.8 | O15: 64848.8 | P15: 65173.1 | R15: 65173.1 | S15: 63577.3 | T15: 64848.8 | U15: 65173.1 | V15: 0 | W15: 0 | X15: 0
A16: 7 | B16: 121 | C16: Представительство Правительства Ленинградской области при Правительстве Российской Федерации | D16: 27249.7 | E16: 27249.7 | F16: 27879.9 | G16: 24392 | H16: 89.51291207 | I16: -2857.7 | J16: 24392 | L16: 24392 | M16: 24879.8 | O16: 24879.8 | P16: 25004.2 | R16: 25004.2 | S16: 24392 | T16: 24879.8 | U16: 25004.2 | V16: 0 | W16: 0 | X16: 0
A17: 8 | B17: 133 | C17: Управление делами Правительства Ленинградской области | D17: 3103147.5 | E17: 3103147.5 | F17: 2988330.5 | G17: 3222926.5 | H17: 103.8599196 | I17: 119779 | J17: 3294831.1 | K17: 14510.6 | L17: 3309341.7 | M17: =3320739+23319.4+9121+31500-32981 -> 3351698.4 | N17: 14510.6 | O17: 3366209 | P17: =3337342.7+23319.4+9121+31500-32981 -> 3368302.1 | Q17: 14510.6 | R17: 3382812.7 | S17: 3309341.7 | T17: 3366209 | U17: 3382812.7 | V17: 0 | W17: 0 | X17: 0
A18: 9 | B18: 252 | C18: Комитет по телекоммуникациям и информатизации Ленинградской области | D18: 541129.6 | E18: 541129.6 | F18: 430420.9 | G18: =F18 -> 430420.9 | H18: 79.5411857 | I18: -110708.7 | J18: 492420.9 | L18: 492420.9 | M18: 502269.3 | O18: 502269.3 | P18: 504780.7 | R18: 504780.7 | S18: 492420.9 | T18: 502269.3 | U18: 504780.7 | V18: 0 | W18: 0 | X18: 0
A19: 10 | B19: 801 | C19: Ленинградский областной комитет по управлению государственным имуществом | D19: 610395.5 | E19: 610395.5 | F19: 215506.8 | G19: 395583.9 | H19: 64.80780084 | I19: -214811.6 | J19: 345583.9 | L19: 345583.9 | M19: 352495.6 | O19: 352495.6 | P19: 354258.1 | R19: 354258.1 | S19: 345583.9 | T19: 352495.6 | U19: 354258.1 | V19: 0 | W19: 0 | X19: 0
A20: 11 | B20: 931 | C20: Управление записи актов гражданского состояния Ленинградской области | D20: 0 | E20: 0 | F20: 0 | G20: 0 | I20: 0 | J20: 8000 | K20: 80677 | L20: 88677 | M20: 8000 | N20: 80677 | O20: 88677 | P20: 8040 | Q20: 80677 | R20: 88717 | S20: 88677 | T20: 88677 | U20: 88717 | V20: 0 | W20: 0 | X20: 0
A21: 12 | B21: 949 | C21: Уполномоченный по защите прав предпринимателей в Ленинградской области | D21: 3734.6 | E21: 3734.6 | F21: 7939.8 | G21: =F21 -> 7939.8 | H21: =G21/E21*100 -> 212.6010818 | I21: 4205.2 | J21: 7939.8 | L21: 7939.8 | M21: 8098.6 | O21: 8098.6 | P21: 8139.1 | R21: 8139.1 | S21: 7939.8 | T21: 8098.6 | U21: 8139.1 | V21: 0 | W21: 0 | X21: 0
A22: 13 | B22: 950 | C22: Комитет по архитектуре и градостроительству Ленинградской области | D22: 38920 | E22: 38920 | G22: 38920 | H22: 100 | I22: 0 | J22: 20920 | L22: 20920 | M22: 21338.4 | O22: 21338.4 | P22: 21445.1 | R22: 21445.1 | S22: 20920 | T22: 21338.4 | U22: 21445.1 | V22: 0 | W22: 0 | X22: 0
A23: 14 | B23: 960 | C23: Законодательное собрание Ленинградской области | D23: 441500.7 | E23: 441500.7 | F23: 441500.7 | G23: 453421.2 | H23: 102.6999957 | I23: 11920.5 | J23: 453421.2 | L23: 453421.2 | M23: 462489.6 | O23: 462489.6 | P23: 464802.1 | R23: 464802.1 | S23: 453421.2 | T23: 462489.6 | U23: 464802.1 | V23: 0 | W23: 0 | X23: 0
A24: 15 | B24: 961 | C24: Комитет по физической культуре и спорту Ленинградской области | D24: 185168.7 | E24: 185168.7 | F24: 179199.9 | G24: 190168.3 | H24: 102.7000244 | I24: 4999.6 | J24: 240168.3 | L24: 240168.3 | M24: =193971.7+50000 -> 243971.7 | O24: 243971.7 | P24: =194941.5+50000 -> 244941.5 | R24: 244941.5 | S24: 240168.3 | T24: 243971.7 | U24: 244941.5 | V24: 0 | W24: 0 | X24: 0
A25: 16 | B25: 962 | C25: Комитет по культуре Ленинградской области | D25: 1517881.4 | E25: 1517881.4 | F25: 1549089.3 | G25: =1553120.4+83000 -> 1636120.4 | H25: 107.789739 | I25: 118239 | J25: 1493114.4 | L25: 1493114.4 | M25: 1624778.9 | O25: 1624778.9 | P25: 1788287.4 | R25: 1788287.4 | S25: 1493114.4 | T25: 1624778.9 | U25: 1788287.4 | V25: 0 | W25: 0 | X25: 0
A26: 17 | B26: 970 | C26: Комитет по труду и занятости населения Ленинградской области | D26: 307659.1 | E26: 307659.1 | F26: 314357.8 | G26: 315965.9 | H26: 102.7000014 | I26: 8306.8 | J26: 315965.9 | K26: 243715.6 | L26: 559681.5 | M26: 322285.2 | N26: 241354.7 | O26: 563639.9 | P26: 323896.6 | Q26: 241354.7 | R26: 565251.3 | S26: 559681.5 | T26: 563639.9 | U26: 565251.3 | V26: 0 | W26: 0 | X26: 0
A27: 18 | B27: 972 | C27: Комитет правопорядка и безопасности Ленинградской области | D27: 1459793.6 | E27: 1459793.6 | F27: 1712677.1 | G27: 1499208 | H27: 102.6999981 | I27: 39414.4 | J27: 1561742.4 | K27: =57397.4 -> 57397.4 | L27: 1619139.8 | M27: =1545790.5+32981 -> 1578771.5 | N27: =57397.4+3294 -> 60691.4 | O27: 1639462.9 | P27: =1553519.5+32981 -> 1586500.5 | Q27: 57397.4 | R27: 1643897.9 | S27: 1619139.8 | T27: 1639462.9 | U27: 1643897.9 | V27: 0 | W27: 0 | X27: 0
A28: 19 | B28: 974 | C28: Комитет по природным ресурсам Ленинградской области | D28: 757863.2 | E28: 757863.2 | F28: 773739.4 | G28: 778325.5 | H28: 102.6999992 | I28: 20462.3 | J28: 829325.5 | K28: 413573 | L28: 1242898.5 | M28: =820412+25000 -> 845412 | N28: 446714 | O28: 1292126 | P28: =824514.1+25000 -> 849514.1 | Q28: 407300.6 | R28: 1256814.7 | S28: 1242898.5 | T28: 1292126 | U28: 1256814.7 | V28: 0 | W28: 0 | X28: 0
A29: 20 | B29: 976 | C29: Комитет по печати и связям с общественностью Ленинградской области | D29: 239270.9 | E29: 239270.9 | F29: 192264.7 | G29: 239270.9 | H29: 100 | I29: 0 | J29: 192264.7 | L29: 192264.7 | M29: 196110 | O29: 196110 | P29: 197090.5 | R29: 197090.5 | S29: 192264.7 | T29: 196110 | U29: 197090.5 | V29: 0 | W29: 0 | X29: 0
A30: 21 | B30: 977 | C30: Комитет экономического развития и инвестиционной деятельности Ленинградской области | D30: 1814085.3 | E30: 1814085.3 | F30: 1969001.9 | G30: 2026789.5 | H30: 111.7251488 | I30: 212704.2 | J30: 1911075.2 | K30: 66457.3 | L30: 1977532.5 | M30: =2056489.5+20000 -> 2076489.5 | O30: 2076489.5 | P30: =1902471.9+20000 -> 1922471.9 | R30: 1922471.9 | S30: 1977532.5 | T30: 2076489.5 | U30: 1922471.9 | V30: 0 | W30: 0 | X30: 0
A31: 22 | B31: 978 | C31: Комитет по топливно-энергетическому комплексу Ленинградской области | D31: 2625675.7 | E31: 2625675.7 | F31: 2731595.2 | G31: =1932601.5+713001-408000 -> 2237602.5 | H31: 85.22006354 | I31: -388073.2 | J31: 2659601.5 | L31: 2659601.5 | M31: 2712793.5 | O31: 2712793.5 | P31: 2726357.5 | R31: 2726357.5 | S31: 2659601.5 | T31: 2712793.5 | U31: 2726357.5 | V31: 0 | W31: 0 | X31: 0
A32: 23 | B32: 979 | C32: Комитет по развитию малого, среднего бизнеса и потребительского рынка Ленинградской области | D32: 179534.8 | E32: 179534.8 | F32: 193141.4 | G32: 180056.5 | H32: 100.2905843 | I32: 521.7 | J32: =270770.8+10000 -> 280770.8 | L32: 280770.8 | M32: =183657.6+5000 -> 188657.6 | O32: 188657.6 | P32: =184575.9+5000 -> 189575.9 | R32: 189575.9 | S32: 280770.8 | T32: 188657.6 | U32: 189575.9 | V32: 0 | W32: 0 | X32: 0
A33: 24 | B33: 981 | C33: Комитет по строительству Ленинградской области | D33: 5600607 | E33: 5600607 | F33: 5232169.9 | G33: =827708.2+6311729-1049105.5+705000 -> 6795331.7 | H33: 121.3320574 | I33: 1194724.7 | J33: =6429269.2+10000 -> 6439269.2 | K33: =546491.7+84400 -> 630891.7 | L33: 7070160.9 | M33: 4298585.2 | N33: 516756.7 | O33: 4815341.9 | P33: 3649685.2 | Q33: 165237 | R33: 3814922.2 | S33: 7060160.9 | T33: 4815341.9 | U33: 3814922.2 | V33: 10000 | W33: 0 | X33: 0
A34: 25 | B34: 982 | C34: Комитет государственного контроля природопользования и экологической безопасности Ленинградской области | D34: 31652.3 | E34: 31652.3 | F34: 32282 | G34: 32977.4 | H34: 104.1864256 | I34: 1325.1 | J34: =37977.4+3000 -> 40977.4 | L34: 40977.4 | M34: =33636.9+5000+3000 -> 41636.9 | O34: 41636.9 | P34: =33805.1+5000+3000 -> 41805.1 | R34: 41805.1 | S34: 40977.4 | T34: 41636.9 | U34: 41805.1 | V34: 0 | W34: 0 | X34: 0
A35: 26 | B35: 983 | C35: Комитет по охране, контролю и регулированию использования объектов животного мира Ленинградской области | D35: 87980.6 | E35: 87980.6 | F35: 90015.3 | G35: 88510.4 | H35: 100.6021782 | I35: 529.8 | J35: 82131.5 | K35: 12648 | L35: 94779.5 | M35: =73574.1+10000 -> 83574.1 | N35: 12648 | O35: 96222.1 | P35: =73942+10000 -> 83942 | Q35: 12648 | R35: 96590 | S35: 94779.5 | T35: 96222.1 | U35: 96590 | V35: 0 | W35: 0 | X35: 0
A36: 27 | B36: 984 | C36: Комитет по жилищно-коммунальному хозяйству и транспорту Ленинградской области | D36: 2462260.4 | E36: 2462260.4 | F36: 2538560.2 | G36: =2528741.4-290000 -> 2238741.4 | H36: 90.92220303 | I36: -223519 | J36: 2463173.3 | K36: 22263.5 | L36: 2485436.8 | M36: 2512436.8 | N36: 22272.8 | O36: 2534709.6 | P36: 2524998.9 | Q36: 22272.8 | R36: 2547271.7 | S36: 2485436.8 | T36: 2534709.6 | U36: 2547271.7 | V36: 0 | W36: 0 | X36: 0
A37: 28 | B37: 985 | C37: Комитет финансов Ленинградской области | D37: 5895449.4 | E37: 5895449.4 | F37: 6825681.6 | G37: =6348181.6-100000+70000+260000 -> 6578181.6 | H37: 111.5806642 | I37: 682732.2 | J37: =6360811.3-13000+30+69261.2-10000 -> 6407102.5 | L37: 6407102.5 | M37: =6071029.7+50000-49524 -> 6071505.7 | O37: 6071505.7 | P37: =5962326.9+50000 -> 6012326.9 | R37: 6012326.9 | S37: 6417102.5 | T37: 6071505.7 | U37: 6012326.9 | V37: -10000 | W37: 0 | X37: 0
A38: 29 | B38: 986 | C38: Комитет по здравоохранению Ленинградской области | D38: 13188882.7 | E38: =13188882.7+130000 -> 13318882.7 | F38: 13346132 | G38: =13188882.7 -> 13188882.7 | H38: 99.02394215 | I38: -130000 | J38: 13188882.7 | K38: 546806.5 | L38: 13735689.2 | M38: 14216283.8 | N38: 546806.5 | O38: 14763090.3 | P38: 14684984.9 | Q38: 546806.5 | R38: 15231791.4 | S38: 13735689.2 | T38: 14763090.3 | U38: 15231791.4 | V38: 0 | W38: 0 | X38: 0
A39: 30 | B39: 987 | C39: Комитет по социальной защите населения Ленинградской области | D39: 6523451.9 | E39: =6523451.9+240000 -> 6763451.9 | F39: 6672048.3 | G39: =7297170.1-150000 -> 7147170.1 | H39: 105.6734077 | I39: 383718.2 | J39: 7045170.1 | K39: 3218174.9 | L39: 10263345 | M39: 7480560.5 | N39: 3265436.8 | O39: 10745997.3 | P39: 7593029.5 | Q39: 3265436.8 | R39: 10858466.3 | S39: 10263345 | T39: 10745997.3 | U39: 10858466.3 | V39: 0 | W39: 0 | X39: 0
A40: 31 | B40: 988 | C40: Архивное управление Ленинградской области | D40: 40753 | E40: 40753 | F40: 41695.5 | G40: 45729 | H40: 112.210144 | I40: 4976 | J40: 45729 | L40: 45729 | M40: 46643.6 | O40: 46643.6 | P40: 46876.8 | R40: 46876.8 | S40: 45729 | T40: 46643.6 | U40: 46876.8 | V40: 0 | W40: 0 | X40: 0
A41: 32 | B41: 989 | C41: Комитет государственного строительного надзора и государственной экспертизы Ленинградской области | D41: 900 | E41: 900 | F41: 900 | G41: 900 | H41: 100 | I41: 0 | J41: 0 | L41: 0 | M41: =900-900 -> 0 | O41: 0 | P41: =904.5-904.5 -> 0 | R41: 0 | V41: 0 | W41: 0 | X41: 0
A42: 33 | B42: 990 | C42: Комитет по местному самоуправлению, межнациональным и межконфессиональным отношениям Ленинградской области | D42: 198109.5 | E42: 198109.5 | F42: 203243.1 | G42: 217624.6 | H42: 109.8506634 | I42: 19515.1 | J42: 306588.4 | L42: 306588.4 | M42: =221977.1+5664.5+11467+70000 -> 309108.6 | O42: 309108.6 | P42: =223087+4554.6+11467+70000 -> 309108.6 | R42: 309108.6 | S42: 306588.4 | T42: 309108.6 | U42: 309108.6 | V42: 0 | W42: 0 | X42: 0
A43: 34 | B43: 992 | C43: Управление Ленинградской области по государственному техническому надзору и контролю | D43: 9000 | E43: 9000 | F43: 9000 | G43: 9000 | H43: 100 | I43: 0 | J43: 9000 | L43: 9000 | M43: 9000 | O43: 9000 | P43: 9045 | R43: 9045 | S43: 9000 | T43: 9000 | U43: 9045 | V43: 0 | W43: 0 | X43: 0
A44: 35 | B44: 993 | C44: Комитет по молодежной политике Ленинградской области | D44: 91260.1 | E44: 91260.1 | F44: 93162.5 | G44: 93724.1 | H44: 102.6999751 | I44: 2464 | J44: 98724.1 | L44: 98724.1 | M44: =95598.6+5000 -> 100598.6 | O44: 100598.6 | P44: =96076.6+5000 -> 101076.6 | R44: 101076.6 | S44: 98724.1 | T44: 100598.6 | U44: 101076.6 | V44: 0 | W44: 0 | X44: 0
A45: 36 | B45: 995 | C45: Уполномоченный по правам человека в Ленинградской области | D45: 13058.1 | E45: 13058.1 | F45: 13360.1 | G45: =F45 -> 13360.1 | H45: 102.3127408 | I45: 302 | J45: 13360.1 | L45: 13360.1 | M45: 13627.3 | O45: 13627.3 | P45: 13695.4 | R45: 13695.4 | S45: 13360.1 | T45: 13627.3 | U45: 13695.4 | V45: 0 | W45: 0 | X45: 0
A46: 37 | B46: 996 | C46: Управление ветеринарии Ленинградской области | D46: 402712 | E46: 402712 | F46: 322004.4 | G46: =394726-70000 -> 324726 | H46: 80.63479608 | I46: -77986 | J46: 374726 | L46: 374726 | M46: =331220.5+50000 -> 381220.5 | O46: 381220.5 | P46: =332876.6+50000 -> 382876.6 | R46: 382876.6 | S46: 374726 | T46: 381220.5 | U46: 382876.6 | V46: 0 | W46: 0 | X46: 0
A47: 38 | B47: 997 | C47: Комитет государственного заказа Ленинградской области | D47: 9500 | E47: 9500 | F47: 13600 | G47: =F47 -> 13600 | H47: 143.1578947 | I47: 4100 | J47: 13600 | L47: 13600 | M47: 12000 | O47: 12000 | P47: 12000 | R47: 12000 | S47: 13600 | T47: 12000 | U47: 12000 | V47: 0 | W47: 0 | X47: 0
A48: 39 | B48: 998 | C48: Уполномоченный по правам ребенка в Ленинградской области | D48: 10613.7 | E48: 10613.7 | F48: 10000 | G48: 10800 | H48: 101.7552786 | I48: 186.3 | J48: 12886.1 | L48: 12886.1 | M48: =11016+2086.1 -> 13102.1 | O48: 13102.1 | P48: =11071.1+2086.1 -> 13157.2 | R48: 13157.2 | S48: 12886.1 | T48: 13102.1 | U48: 13157.2 | V48: 0 | W48: 0 | X48: 0
